bitfinex/quotes_SOLUSD_20220119
["timestamp","ask_amount","ask_price","bid_price","bid_amount"]
[1642615630300,0.25,137.23,137.15,11.1847]
[1642615633693,0.25,137.23,137.15,10.9347]
[1642615633894,11.1857,137.23,137.13,24.9644]
[1642615634094,2.915,137.22,137.12,2.915]
[1642615634295,0.25,137.21,137.12,2.915]
[1642615634494,2.916,137.2,137.12,2.915]
[1642615634699,0.25,137.19,137.12,2.915]
[1642615634898,13.8554,137.18,137.1,36.96260438]
[1642615635304,0.25,137.17,137.1,36.96260438]
[1642615635899,0.25,137.17,137.08,24.6848]
[1642615636101,0.25,137.17,137.09,0.25]
[1642615636300,4.71824012,137.2,137.09,0.25]
[1642615636501,10.9403,137.17,137.09,0.25]
[1642615636999,10.9403,137.17,137.09,48.83177246]
[1642615637903,10.9403,137.17,137.09,59.77127246]
[1642615638103,4.71824012,137.2,137.09,61.01722472]
[1642615638303,2.666,137.2,137.1,32.86]
[1642615638511,2.666,137.2,137.1,35.776]
[1642615638701,2.666,137.2,137.11,1.49595226]
[1642615638902,2.666,137.2,137.11,0.25]
[1642615639102,13.6038,137.2,137.11,0.25]
[1642615639302,72.97,137.19,137.1,24.1]
[1642615639502,75.02224012,137.19,137.1,24.1]
[1642615639704,0.25,137.18,137.06,23.222]
[1642615639906,0.25,137.18,137.07,23.8847]
[1642615639907,8.76,137.17,137.07,23.8847]
[1642615640104,21.75374012,137.17,137.07,23.8847]
[1642615640505,75.02224012,137.16,137.07,23.8847]
[1642615641004,2.05224012,137.15,137.07,23.8847]
[1642615641605,10.9432,137.14,137.07,23.8847]
[1642615644911,11.1933,137.13,137.07,23.8847]
[1642615645211,0.25,137.12,137.07,23.8847]
[1642615645815,0.25,137.12,137.06,23.222]
[1642615646210,10.9433,137.13,137.06,23.222]
[1642615647314,10.9433,137.13,137.02,35.0375]
[1642615647515,83.9133,137.13,137.02,24.093]
[1642615647714,83.9133,137.13,137.03,0.25]
[1642615647917,10.9433,137.13,137.03,0.25]
[1642615648416,10.9433,137.13,137.03,43.1728625]
[1642615649415,10.9433,137.13,137.04,22.789]
[1642615649816,10.9449,137.11,137.04,22.789]
[1642615650221,0.25,137.1,137.04,22.789]
[1642615650426,26.66334012,137.15,137.04,22.789]
[1642615650621,26.66334012,137.15,137.05,0.25]
[1642615650825,24.6111,137.15,137.05,0.25]
[1642615651221,25.38854012,137.17,137.05,0.25]
[1642615651826,0.25,137.16,137.05,0.25]
[1642615652426,10.9423,137.15,137.05,11.1923]
[1642615652626,10.9423,137.15,137.06,23.4285]
[1642615653027,10.9423,137.15,137.07,0.25]
[1642615653529,0.25,137.14,137.07,0.25]
[1642615655030,11.1927,137.14,137.07,0.25]
[1642615655232,10.9427,137.14,137.07,0.25]
[1642615658236,10.9427,137.14,137.06,23.4285]
[1642615658436,10.9427,137.14,137.04,27.4958]
[1642615659240,85.96494012,137.14,137.04,51.4078]
[1642615659541,10.9427,137.14,137.04,51.4078]
[1642615659740,10.9427,137.14,137.05,0.25]
[1642615660670,0.25,137.13,137.05,0.25]
[1642615661070,2.05224012,137.15,137.05,0.25]
[1642615661271,0.25,137.14,137.05,1.49595226]
[1642615661468,0.25,137.14,137.05,18.43845226]
[1642615661668,2.05224012,137.17,137.06,23.2332]
[1642615661871,2.05224012,137.18,137.07,83.48]
[1642615662069,14.66647371,137.19,137.08,113.68776933]
[1642615662270,14.66647371,137.19,137.09,22.898]
[1642615662471,2.05224012,137.19,137.1,10.9381]
[1642615662673,2.05224012,137.19,137.11,0.25]
[1642615662872,4.71824012,137.2,137.11,0.25]
[1642615663774,4.71824012,137.2,137.1,0.25]
[1642615663973,2.05224012,137.19,137.1,0.25]
[1642615664273,2.05224012,137.19,137.12,10.9371]
[1642615664474,2.05224012,137.19,137.13,48.69409986]
[1642615664675,2.05224012,137.19,137.13,48.94409986]
[1642615664875,4.71824012,137.2,137.13,48.94409986]
[1642615665480,4.71824012,137.2,137.13,59.87989986]
[1642615666077,4.71824012,137.2,137.13,0.25]
[1642615666278,4.71824012,137.2,137.1,23.5592]
[1642615666676,2.05224012,137.18,137.11,0.25]
[1642615666878,10.9401,137.17,137.11,0.25]
[1642615667077,10.9401,137.17,137.11,48.12753767]
[1642615668780,2.05224012,137.18,137.11,48.12753767]
[1642615668978,0.25,137.17,137.11,48.12753767]
[1642615671384,2.05224012,137.18,137.11,48.12753767]
[1642615671785,12.99124012,137.19,137.11,48.12753767]
[1642615672485,2.05224012,137.18,137.11,48.12753767]
[1642615673387,2.05224012,137.18,137.11,59.06533767]
[1642615673586,2.05224012,137.19,137.11,59.06533767]
[1642615673786,4.71824012,137.2,137.11,59.06533767]
[1642615676088,4.71824012,137.2,137.11,61.98133767]
[1642615678289,15.65594012,137.2,137.11,61.98133767]
[1642615679590,15.65594012,137.2,137.11,51.04353767]
[1642615679791,12.99124012,137.19,137.11,51.04353767]
[1642615681091,12.99124012,137.19,137.11,3.166]
[1642615681295,14.81836614,137.19,137.11,2.916]
[1642615681495,2.05224012,137.17,137.11,2.916]
[1642615681695,10.9424,137.16,137.11,2.916]
[1642615681896,12.99464012,137.16,137.11,2.916]
[1642615683299,10.9434,137.14,137.11,2.916]
[1642615683697,6.06439994,137.13,137.11,2.916]
[1642615684698,17.00809994,137.13,137.11,2.916]
[1642615686730,0.25,137.12,137.11,2.916]
[1642615691432,0.25,137.12,137.06,24.5568]
[1642615691634,10.9452,137.11,137.01,70.24164384]
[1642615691832,10.9452,137.11,137.02,24.4403]
[1642615692237,12.99744012,137.11,137.02,24.4403]
[1642615692433,10.9452,137.11,137.02,24.4403]
[1642615692834,10.9452,137.11,137.03,0.25]
[1642615693036,11.1956,137.1,137.03,0.25]
[1642615693242,0.25,137.09,137.03,0.25]
[1642615693837,10.9456,137.1,137.03,0.25]
[1642615694036,10.9456,137.1,137.03,3.168]
[1642615694839,10.9446,137.12,137.03,3.168]
[1642615695538,26.60324012,137.14,137.03,14.1121]
[1642615695740,26.60324012,137.14,137.04,24.9081]
[1642615695940,24.551,137.14,137.04,24.9081]
[1642615696139,35.494,137.14,137.05,0.25]
[1642615696940,2.05224012,137.15,137.06,48.86324642]
[1642615697139,2.05224012,137.17,137.06,158.75344642]
[1642615697342,2.05224012,137.17,137.07,0.25]
[1642615697540,12.99184012,137.18,137.08,2.916]
[1642615697739,12.99184012,137.18,137.09,0.25]
[1642615697939,12.99184012,137.18,137.07,3.166]
[1642615698439,12.99184012,137.18,137.08,24.8642]
[1642615698840,12.99184012,137.18,137.09,0.25]
[1642615699040,2.05224012,137.17,137.09,0.25]
[1642615699239,10.9418,137.15,137.09,0.25]
[1642615699441,10.9418,137.15,137.08,24.8642]
[1642615699640,10.9418,137.15,137.09,0.25]
[1642615699843,10.9418,137.15,137.08,24.8642]
[1642615701645,10.9418,137.15,137.09,0.25]
[1642615701946,10.9418,137.15,137.08,24.8642]
[1642615702146,10.9418,137.15,137.09,0.25]
[1642615702348,10.9418,137.15,137.08,24.8642]
[1642615703146,10.9433,137.13,137.08,24.8642]
[1642615704149,0.25,137.14,137.08,24.8642]
[1642615705350,11.1926,137.14,137.06,72.52984642]
[1642615705551,11.1926,137.14,137.07,0.25]
[1642615708954,13.24484012,137.14,137.07,0.25]
[1642615710355,10.9465,137.1,137.02,2.916]
[1642615710556,10.9465,137.1,137.0,2.05882492]
[1642615710756,12.77362602,137.1,136.99,2.05882492]
[1642615710956,25.33586614,137.1,136.98,27.77292492]
[1642615711255,75.02224012,137.09,136.98,66.88336337]
[1642615711454,10.9494,137.06,136.98,66.88336337]
[1642615711654,10.9494,137.06,136.98,22.7961]
[1642615712256,10.9494,137.06,136.99,0.25]
[1642615712462,10.9494,137.06,136.98,22.7961]
[1642615713457,10.9494,137.06,136.95,26.61632492]
[1642615713657,10.9494,137.06,136.95,24.5575]
[1642615714360,10.9517,137.02,136.96,44.68890145]
[1642615715961,0.25,137.05,136.96,44.68890145]
[1642615715962,10.9508,137.04,136.96,44.68890145]
[1642615716162,10.9508,137.04,136.97,0.25]
[1642615718065,0.25,137.03,136.97,0.25]
[1642615720990,10.9508,137.04,136.97,0.25]
[1642615721393,10.9491,137.06,136.97,11.1991]
[1642615721890,38.15729091,137.09,136.97,11.1991]
[1642615722089,38.15729091,137.09,136.98,22.9971]
[1642615722291,38.15729091,137.09,136.99,0.25]
[1642615723189,10.9476,137.08,136.99,11.1976]
[1642615724894,11.1978,137.07,136.99,11.1976]
[1642615725196,0.25,137.06,136.99,11.1976]
[1642615725494,0.25,137.06,136.99,0.25]
[1642615725694,0.25,137.08,136.99,0.25]
[1642615726292,10.9486,137.06,136.99,0.25]
[1642615726893,0.25,137.08,136.99,0.25]
[1642615728096,11.1976,137.08,136.99,11.1975]
[1642615729900,11.1976,137.08,137.0,10.51]
[1642615730099,11.1976,137.08,137.01,44.36583737]
[1642615734006,10.9476,137.08,137.02,0.25]
[1642615734206,1.66129091,137.09,137.02,0.25]
[1642615734407,1.66129091,137.09,137.02,23.0479]
[1642615735407,1.66129091,137.09,137.02,33.9928]
[1642615739812,75.02224012,137.13,137.02,44.5028]
[1642615740111,36.483,137.14,137.02,44.5028]
[1642615740112,2.05224012,137.14,137.06,10.9417]
[1642615740313,2.05224012,137.16,137.07,45.92974023]
[1642615740514,2.05224012,137.16,137.07,48.84574023]
[1642615740717,2.05224012,137.17,137.08,23.2018]
[1642615740913,2.05224012,137.17,137.09,2.916]
[1642615741116,12.99194012,137.18,137.09,14.1048]
[1642615741314,2.05224012,137.17,137.09,0.25]
[1642615741516,2.30224012,137.17,137.09,0.25]
[1642615741915,2.05224012,137.16,137.08,33.7118]
[1642615742515,12.99414012,137.15,137.08,23.2018]
[1642615743117,10.9419,137.15,137.08,23.2018]
[1642615743518,12.99414012,137.15,137.08,23.2018]
[1642615743720,10.9419,137.15,137.08,23.2018]
[1642615745721,10.9419,137.15,137.05,10.51]
[1642615745925,12.99414012,137.15,137.04,26.9757]
[1642615746122,12.99414012,137.15,137.04,2.916]
[1642615746326,2.05224012,137.14,137.04,2.916]
[1642615746523,10.9451,137.11,137.02,35.4378]
[1642615746742,10.9451,137.11,137.03,38.52361798]
[1642615747742,10.9451,137.11,137.04,0.25]
[1642615748042,10.9451,137.11,137.02,27.4107]
[1642615748242,10.9451,137.11,137.02,24.4927]
[1642615748844,0.25,137.1,137.02,24.4927]
[1642615749043,10.9466,137.09,137.02,72.64942928]
[1642615749242,10.9466,137.09,137.02,24.4927]
[1642615749843,2.05224012,137.12,137.02,35.4377]
[1642615750043,2.05224012,137.13,137.03,0.25]
[1642615750242,2.05224012,137.13,137.03,40.95728839]
[1642615751343,2.05224012,137.13,137.04,24.8628]
[1642615751545,10.9435,137.13,137.04,35.8063]
[1642615751744,10.9435,137.13,137.05,0.25]
[1642615752647,10.9435,137.13,137.04,35.8063]
[1642615752846,11.1944,137.12,137.04,35.8063]
[1642615753046,11.1944,137.12,137.02,10.9446]
[1642615753248,11.1944,137.12,137.01,24.9728]
[1642615753548,11.1944,137.12,136.98,35.0455]
[1642615753549,12.56224012,137.11,136.98,2.05882492]
[1642615753750,36.4967,137.09,136.98,2.05882492]
[1642615753948,109.4667,137.09,136.97,24.93522492]
[1642615754150,36.4967,137.09,136.98,47.00785026]
[1642615754447,47.0067,137.09,136.98,47.00785026]
[1642615754647,10.949,137.08,136.99,0.25]
[1642615755250,10.949,137.08,136.98,57.95595026]
[1642615756452,10.949,137.08,136.99,0.25]
[1642615756851,0.25,137.07,136.99,0.25]
[1642615757050,11.198,137.07,136.99,0.25]
[1642615757455,11.198,137.07,136.99,11.1975]
[1642615758151,11.198,137.07,136.99,0.25]
[1642615758355,16.614,137.07,136.97,24.93522492]
[1642615758553,16.614,137.07,136.95,2.05882492]
[1642615758754,18.66624012,137.07,136.94,2.05882492]
[1642615758952,10.51,137.06,136.93,49.05682492]
[1642615759151,10.9525,137.03,136.93,49.05682492]
[1642615759353,17.3025,137.03,136.93,49.05682492]
[1642615759755,17.3025,137.03,136.94,0.25]
[1642615760955,10.9525,137.03,136.94,0.25]
[1642615761459,10.9525,137.03,136.94,11.2015]
[1642615761654,10.9498,137.05,136.94,11.2015]
[1642615761854,12.56224012,137.08,136.95,25.89352892]
[1642615762053,10.51,137.08,136.95,33.95235384]
[1642615762254,10.51,137.08,136.96,0.25]
[1642615762255,10.01,137.08,136.96,0.25]
[1642615762855,10.9482,137.07,136.96,11.1994]
[1642615763069,10.9482,137.07,136.96,0.25]
[1642615763362,21.4582,137.07,136.96,0.25]
[1642615763561,72.97,137.06,136.96,0.25]
[1642615763863,73.22,137.06,136.96,0.25]
[1642615764861,10.9518,137.03,136.95,24.6392]
[1642615765860,10.9518,137.03,136.93,23.6671]
[1642615766062,83.9218,137.03,136.94,0.25]
[1642615766766,10.9518,137.03,136.94,0.25]
[1642615767163,0.25,137.02,136.94,0.25]
[1642615767364,10.9531,137.01,136.94,0.25]
[1642615767966,24.6064,137.05,136.94,0.25]
[1642615768167,0.25,137.03,136.94,12.01432892]
[1642615768666,36.5036,137.07,136.94,84.98432892]
[1642615768868,10.9498,137.05,136.96,10.9492]
[1642615769067,10.9498,137.05,136.97,38.66571591]
[1642615769269,10.9498,137.05,136.97,38.91571591]
[1642615769469,10.9498,137.05,136.97,61.97601591]
[1642615769870,10.9498,137.05,136.98,0.25]
[1642615770068,11.2003,137.04,136.97,61.97601591]
[1642615770269,11.2003,137.04,136.98,0.25]
[1642615770469,11.2003,137.04,136.97,61.97601591]
[1642615771272,10.9503,137.04,136.97,61.97601591]
[1642615772070,10.949,137.06,136.98,0.25]
[1642615772670,0.25,137.05,136.98,0.25]
[1642615772871,10.949,137.06,136.98,0.25]
[1642615780402,0.25,137.05,136.98,0.25]
[1642615780605,10.949,137.06,136.98,0.25]
[1642615781413,12.99964012,137.08,136.98,11.1982]
[1642615781612,2.05224012,137.08,136.99,35.2876]
[1642615781911,2.05224012,137.1,137.0,0.25]
[1642615782712,0.25,137.09,137.02,44.07077739]
[1642615783111,0.25,137.09,137.03,0.25]
[1642615784112,12.99794012,137.1,137.03,0.25]
[1642615784312,2.05224012,137.11,137.03,0.25]
[1642615784514,10.9443,137.12,137.03,0.25]
[1642615785515,10.9443,137.12,137.03,11.1943]
[1642615785914,12.99654012,137.12,137.03,0.25]
[1642615786317,2.05224012,137.11,137.03,0.25]
[1642615786516,10.9443,137.12,137.04,10.51]
[1642615786720,10.9443,137.12,137.05,0.25]
[1642615788220,2.05224012,137.14,137.05,21.7025]
[1642615788423,2.05224012,137.15,137.07,40.12015295]
[1642615788617,2.05224012,137.15,137.08,13.426]
[1642615788819,2.05224012,137.17,137.08,13.676]
[1642615789119,2.05224012,137.18,137.09,22.514]
[1642615789516,2.05224012,137.18,137.1,0.25]
[1642615789718,0.25,137.17,137.08,10.51]
[1642615789920,75.27224012,137.17,137.05,10.51]
[1642615790120,2.05224012,137.14,137.03,37.1026]
[1642615790318,2.05224012,137.15,137.03,37.1026]
[1642615790719,2.05224012,137.14,137.04,45.19007546]
[1642615790921,2.05224012,137.13,137.04,45.19007546]
[1642615791124,12.76942602,137.14,137.05,10.51]
[1642615791421,10.9423,137.14,137.05,10.51]
[1642615791923,2.05224012,137.16,137.05,34.2951]
[1642615792322,2.05224012,137.16,137.06,0.25]
[1642615793422,10.9413,137.15,137.06,11.1913]
[1642615795929,10.9437,137.12,137.05,34.2951]
[1642615796125,10.9437,137.12,137.05,23.7851]
[1642615797831,10.9437,137.12,137.06,0.25]
[1642615799457,0.25,137.11,137.06,0.25]
[1642615800760,10.9426,137.14,137.06,0.25]
[1642615801460,2.05224012,137.15,137.06,0.25]
[1642615801660,5.64297356,137.21,137.06,0.25]
[1642615801661,2.05224012,137.17,137.06,73.22]
[1642615801860,2.05224012,137.17,137.07,23.444]
[1642615802060,2.05224012,137.17,137.09,10.9393]
[1642615802260,2.05224012,137.17,137.1,0.25]
[1642615802460,2.05224012,137.17,137.1,44.74008493]
[1642615802669,2.05224012,137.18,137.1,44.49008493]
[1642615803266,2.05224012,137.18,137.11,0.25]
[1642615804268,2.666,137.2,137.14,45.63801225]
[1642615804469,2.666,137.2,137.14,63.24911225]
[1642615804668,2.666,137.2,137.15,73.22]
[1642615805765,2.666,137.2,137.15,0.25]
[1642615805970,2.666,137.2,137.17,35.55398939]
[1642615807268,2.666,137.2,137.12,74.5888]
[1642615807667,2.666,137.2,137.13,0.25]
[1642615808367,2.666,137.2,137.13,42.86288518]
[1642615808572,2.666,137.2,137.14,10.9348]
[1642615808768,2.666,137.2,137.15,0.25]
[1642615809869,2.666,137.2,137.14,0.25]
[1642615810670,2.666,137.2,137.13,42.61288518]
[1642615811671,13.6033,137.2,137.13,42.61288518]
[1642615812575,2.666,137.2,137.13,53.54908518]
[1642615812772,2.666,137.2,137.13,66.97508518]
[1642615813675,2.666,137.2,137.13,64.05908518]
[1642615813875,2.666,137.2,137.13,42.61288518]
[1642615814274,0.25,137.19,137.13,42.61288518]
[1642615815877,2.666,137.2,137.13,42.61288518]
[1642615816078,2.666,137.2,137.14,72.97]
[1642615816277,3.90698629,137.26,137.15,39.0]
[1642615816479,3.90698629,137.27,137.16,72.97]
[1642615816679,115.80698629,137.29,137.17,24.8019]
[1642615816878,111.9,137.29,137.17,24.8019]
[1642615817081,111.9,137.29,137.18,34.84200612]
[1642615817278,111.9,137.29,137.19,0.25]
[1642615817482,111.9,137.29,137.18,34.84200612]
[1642615817680,0.25,137.28,137.19,0.25]
[1642615818081,11.1814,137.28,137.18,34.84200612]
[1642615818385,21.6914,137.28,137.18,34.84200612]
[1642615819982,21.6914,137.28,137.19,0.25]
[1642615823085,21.4414,137.28,137.18,34.84200612]
[1642615824185,21.4414,137.28,137.19,0.25]
[1642615824385,21.4414,137.28,137.19,11.1812]
[1642615825186,21.4414,137.28,137.19,0.25]
[1642615825786,72.97,137.27,137.17,23.4868]
[1642615825987,10.935,137.24,137.15,24.7209]
[1642615826788,0.25,137.23,137.16,34.80499114]
[1642615827191,0.25,137.23,137.17,0.25]
[1642615827791,36.4498,137.27,137.17,0.25]
[1642615827992,10.9331,137.26,137.17,24.6318]
[1642615828192,34.1268,137.28,137.17,24.6318]
[1642615828193,23.6168,137.28,137.17,24.6318]
[1642615828694,23.6168,137.28,137.17,108.5346]
[1642615829092,3.90698629,137.3,137.17,108.5346]
[1642615829296,19.19390702,137.29,137.17,109.78574206]
[1642615829495,10.9311,137.28,137.17,108.5346]
[1642615830492,0.25,137.27,137.17,108.5346]
[1642615830692,3.90698629,137.29,137.17,108.5346]
[1642615830894,14.83678629,137.3,137.17,108.5346]
[1642615832194,0.25,137.29,137.17,108.5346]
[1642615832493,10.931,137.28,137.17,108.5346]
[1642615833515,10.931,137.28,137.17,35.5646]
[1642615834318,14.83798629,137.28,137.17,35.5646]
[1642615834517,4.11968433,137.27,137.17,24.3818]
[1642615834716,10.9352,137.24,137.16,34.80499114]
[1642615835516,10.9352,137.24,137.16,45.73849114]
[1642615835718,3.90698629,137.26,137.17,0.25]
[1642615835920,10.51,137.27,137.17,23.0513]
[1642615835921,14.41698629,137.27,137.17,23.0513]
[1642615836320,10.933,137.26,137.17,23.0513]
[1642615837219,11.1835,137.25,137.17,33.984]
[1642615837421,11.1835,137.25,137.17,23.0513]
[1642615841428,11.1835,137.25,137.15,24.7209]
[1642615841625,13.01062602,137.25,137.12,2.915]
[1642615841830,10.9373,137.21,137.12,27.8066]
[1642615842028,10.9373,137.21,137.12,24.8916]
[1642615842430,10.9373,137.21,137.13,38.69312728]
[1642615842928,10.9373,137.21,137.13,49.62882728]
[1642615843530,33.4987,137.23,137.14,0.25]
[1642615843730,33.4987,137.23,137.14,24.4559]
[1642615844334,10.9355,137.23,137.14,24.4559]
[1642615844931,0.25,137.22,137.14,24.4559]
[1642615845134,11.186,137.22,137.14,24.4559]
[1642615845335,10.936,137.22,137.14,35.3909]
[1642615845544,28.85578629,137.25,137.14,35.3909]
[1642615846436,10.9345,137.24,137.14,35.3909]
[1642615848239,38.96108629,137.26,137.15,72.97]
[1642615848441,14.83988629,137.26,137.17,59.43977022]
[1642615848838,14.83988629,137.26,137.18,0.25]
[1642615849241,10.9329,137.26,137.18,0.25]
[1642615849443,0.25,137.25,137.18,0.25]
[1642615854474,0.25,137.25,137.17,59.43977022]
[1642615854868,14.83988629,137.26,137.18,0.25]
[1642615855073,3.90698629,137.27,137.19,10.9311]
[1642615855270,14.83848629,137.28,137.2,47.52529353]
[1642615855468,14.83848629,137.28,137.2,71.75609353]
[1642615856071,10.9315,137.28,137.2,71.75609353]
[1642615856477,10.9315,137.28,137.2,82.68629353]
[1642615858675,0.25,137.27,137.2,82.68629353]
[1642615858880,0.25,137.27,137.2,71.75609353]
[1642615859081,11.1817,137.27,137.2,24.2308]
[1642615859283,11.1817,137.27,137.17,10.51]
[1642615859679,15.08868629,137.27,137.15,23.0422]
[1642615859879,15.08868629,137.27,137.16,0.25]
[1642615860178,15.08868629,137.27,137.16,49.88784242]
[1642615860780,15.08868629,137.27,137.16,60.39784242]
[1642615860978,11.1817,137.27,137.16,63.31284242]
[1642615861179,11.1817,137.27,137.17,23.3333]
[1642615861580,11.1817,137.27,137.18,0.25]
[1642615861983,10.9317,137.27,137.18,0.25]
[1642615862481,10.9317,137.27,137.18,11.1821]
[1642615863383,10.9355,137.24,137.16,52.55284242]
[1642615863585,10.9355,137.24,137.16,49.63784242]
[1642615863782,14.84248629,137.24,137.16,49.63784242]
[1642615863983,10.9355,137.24,137.16,49.63784242]
[1642615864384,10.9355,137.24,137.14,24.8249]
[1642615864589,10.9355,137.24,137.15,6.0]
[1642615864784,14.84248629,137.24,137.15,6.0]
[1642615865184,10.9355,137.24,137.15,6.0]
[1642615865384,10.9355,137.24,137.16,39.58679952]
[1642615865785,10.9355,137.24,137.17,0.25]
[1642615865985,10.933,137.26,137.17,0.25]
[1642615866885,10.933,137.26,137.17,24.4171]
[1642615867085,10.9345,137.24,137.17,24.4171]
[1642615867889,10.9345,137.24,137.15,2.915]
[1642615868088,17.8115,137.24,137.15,2.915]
[1642615868490,8.03077362,137.23,137.15,2.915]
[1642615868687,10.9376,137.21,137.15,2.915]
[1642615868889,10.9376,137.21,137.16,36.15672593]
[1642615870388,10.9376,137.21,137.12,24.135]
[1642615870592,10.9376,137.21,137.13,10.9356]
[1642615870799,0.25,137.2,137.13,11.1856]
[1642615871393,0.25,137.2,137.14,47.08214394]
[1642615871996,10.9354,137.23,137.15,0.25]
[1642615873496,10.9354,137.23,137.15,11.1843]
[1642615874998,10.9354,137.23,137.15,35.308]
[1642615875799,28.41218629,137.25,137.15,35.308]
[1642615876101,10.9337,137.25,137.15,35.308]
[1642615876296,22.752,137.27,137.15,124.383]
[1642615876297,26.65898629,137.27,137.15,124.383]
[1642615876797,26.65898629,137.27,137.16,6.0]
[1642615876997,3.90698629,137.28,137.19,10.9306]
[1642615877195,8.02989305,137.28,137.2,23.3352]
[1642615877600,8.02989305,137.28,137.21,37.5820955]
[1642615878038,11.1818,137.27,137.21,37.5820955]
[1642615879428,3.90698629,137.28,137.21,37.5820955]
[1642615879632,18.96046358,137.29,137.22,0.25]
[1642615879830,14.83758629,137.29,137.22,0.25]
[1642615880029,10.9306,137.29,137.22,0.25]
[1642615880530,10.9306,137.29,137.21,37.5820955]
[1642615880732,0.25,137.28,137.21,37.5820955]
[1642615881730,0.25,137.28,137.2,23.0852]
[1642615881931,0.25,137.28,137.21,0.25]
[1642615882133,11.1809,137.28,137.21,0.25]
[1642615882834,11.1809,137.28,137.21,41.36762057]
[1642615884737,10.9309,137.28,137.21,41.36762057]
[1642615886039,14.83688629,137.3,137.21,125.26702057]
[1642615886238,3.90698629,137.31,137.21,125.26702057]
[1642615886439,3.90698629,137.32,137.22,33.8278]
[1642615886637,1.29142064,137.34,137.22,33.8278]
[1642615886638,3.90698629,137.34,137.22,39.8278]
[1642615886937,3.90698629,137.34,137.23,73.22]
[1642615887139,3.90698629,137.34,137.24,57.37805999]
[1642615887339,8.02284642,137.34,137.24,57.37805999]
[1642615887539,18.94944642,137.34,137.25,11.1758]
[1642615887739,10.9266,137.34,137.25,21.6858]
[1642615888140,10.9266,137.34,137.25,46.5571]
[1642615888740,0.25,137.33,137.25,46.5571]
[1642615890342,19.44390702,137.33,137.25,46.5571]
[1642615891342,11.177,137.33,137.25,46.5571]
[1642615891544,3.90698629,137.35,137.25,46.5571]
[1642615891741,24.534,137.37,137.28,10.9239]
[1642615891742,3.90698629,137.37,137.28,10.9239]
[1642615891943,1.47112802,137.38,137.28,10.9239]
[1642615892143,1.47112802,137.38,137.29,0.25]
[1642615892345,1.47112802,137.38,137.29,45.4248158]
[1642615892743,1.47112802,137.38,137.3,24.5313]
[1642615893146,1.47112802,137.38,137.31,0.25]
[1642615893344,0.25,137.37,137.31,0.25]
[1642615893546,11.1742,137.37,137.31,0.25]
[1642615894145,11.1742,137.37,137.3,24.5313]
[1642615894346,11.1742,137.37,137.29,45.1748158]
[1642615895548,11.1742,137.37,137.3,0.25]
[1642615896877,11.1742,137.37,137.29,69.3185158]
[1642615897374,11.1742,137.37,137.29,24.1437]
[1642615898177,11.1742,137.37,137.29,63.68824896]
[1642615899179,11.1742,137.37,137.3,0.25]
[1642615904283,11.1742,137.37,137.29,35.0667]
[1642615904483,11.1742,137.37,137.29,24.1437]
[1642615905086,13.00132602,137.37,137.25,2.912]
[1642615905285,40.14921231,137.37,137.25,47.49389292]
[1642615905486,8.01370158,137.36,137.25,47.49389292]
[1642615905685,10.9286,137.33,137.22,10.51]
[1642615906287,10.9286,137.33,137.18,4.16001789]
[1642615906288,1.82712602,137.32,137.19,10.51]
[1642615906487,1.82712602,137.32,137.16,10.51]
[1642615906686,4.1096283,137.31,137.17,58.68975941]
[1642615906888,8.01661459,137.31,137.17,58.68975941]
[1642615907486,10.9323,137.29,137.17,69.62175941]